Cogmind - Beta 16.1 @@@ ROGUE MODE // 2026.02.20 @ 15:26:54 Player: GrumpyTiger Result: Destroyed by D-53 Grenadier with Mini Grenade Launcher Performance ------------- Evolutions (0) 0 Regions Visited (2) 400 Robots Destroyed (27) 135 Value Destroyed (480) 480 Prototype IDs (3) 60 Alien Tech Used (0) 0 Bonus (0) 0 TOTAL SCORE: 1075 Bonus ------- None Cogmind --------- Core Integrity 0/250 Matter 139/300 Energy 100/100 System Corruption 5% Temperature Cool (0) Movement Walking (120) Location -10/Mines Parts ------- > --- POWER (1) -------- (None) > --- PROPULSION (2) --- Aluminum Leg Aluminum Leg > --- UTILITY (2) ------ Medium Storage Unit Thief Drone Bay (3/3) > --- WEAPON (2) ------- Autogun Autogun > --- INVENTORY (10) --- Heat Sink Structural Scanner Machine Analyzer Reactive Plating Peak State ------------ > --- POWER ------------ Light Ion Engine > --- PROPULSION ------- Aluminum Leg Aluminum Leg > --- UTILITY ---------- Medium Storage Unit Thief Drone Bay > --- WEAPON ----------- Autogun Autogun > --- INVENTORY -------- Heat Sink Structural Scanner Machine Analyzer Reactive Plating [Rating: 15] Favorites ----------- Power Light Ion Engine Engine Light Ion Engine Propulsion Aluminum Leg Leg Aluminum Leg Utility Small Storage Unit Device Structural Scanner Storage Small Storage Unit Weapon Autogun Energy Gun Small Laser Energy Cannon Beam Cannon Ballistic Gun Autogun Build | -11 -10 -10 ------- Run | Yrd Mat Min Slots Evolved . | . . . Power . | . . . Propulsion . | . . . Utility . | . . . Weapon . | . . . Parts Attached 20 | 6 9 5 Power 2 | 1 . 1 Engine 2 | 1 . 1 Core . | . . . Reactor . | . . . Propulsion 6 | 2 4 . Treads . | . . . Leg 6 | 2 4 . Wheel . | . . . Hover . | . . . Flight . | . . . Utility 4 | 1 1 2 Device 2 | . 1 1 Storage 2 | 1 . 1 Processor . | . . . Hackware . | . . . Protection . | . . . Artifact . | . . . Weapon 8 | 2 4 2 Energy Gun 1 | 1 . . Energy Cannon 2 | . 1 1 Ballistic Gun 5 | 1 3 1 Ballistic Cannon . | . . . Launcher . | . . . Special Weapon . | . . . Impact Weapon . | . . . Slashing Weapon . | . . . Piercing Weapon . | . . . Special Melee Weapon . | . . . Unidentified Prototypes 1 | . . 1 Parts Lost 2 | . 1 1 Power 1 | . . 1 Propulsion . | . . . Utility . | . . . Weapon 1 | . 1 . Highest Loss Streak 1 | . 1 1 To Critical Strikes . | . . . Average Backups 2 | 1 1 2 Power . | . . . Propulsion . | . . . Utility . | . . 2 Weapon 1 | . 1 . Tool/Special . | . . . Unused Backups 5 | . 2 3 Power . | . . . Propulsion . | . . . Utility 3 | . . 3 Weapon 2 | . 2 . Tool/Special . | . . . Average Slot Usage (%) 83 | . 79 90 Engine 6 | . 7 5 Leg 27 | . 26 28 Device 8 | . 5 14 Storage 14 | . 14 14 Energy Gun 4 | . 7 . Energy Cannon 5 | . 3 8 Ballistic Gun 15 | . 12 20 Peak Build Rating 15 | 6 8 15 Average Rating 7 | 4 6 10 On Entrance 4 | . 6 7 Avg Prop Armor Cover (%) . | . . . Naked Turns . | . . . Heaviest Build 23 | 10 12 23 Greatest Support 20 | 20 20 20 Greatest Overweight (x) 3 | 3 1 1 Average Overweight (x) . | . . . Largest Inventory Capacity 10 | 8 8 10 Average Capacity 8 | 7 8 9 Most Carried 5 | 3 4 5 Average Carried 2 | 1 1 2 Final Capacity 10 | 8 8 10 Final Carried 4 | 1 1 4 Class Distribution -------------------- 98% | Mutant Dominant Class ---------------- Mutant | -10/Materials Mutant | -10/Mines Resources | -11 -10 -10 ----------- Run | Yrd Mat Min Matter Collected 535 | 240 203 92 Remotely . | . . . Salvage Created 1051 | 96 700 255 Parts 62 | 4 48 10 Haulers Intercepted . | . . . Recyclers Shooed 5 | . 3 2 Parts Field Recycled . | . . . Retrieved Matter . | . . . Parts Self-Destructed . | . . . Prevented . | . . . Parts Restored . | . . . Kills | -11 -10 -10 ------- Run | Yrd Mat Min Combat Hostiles Destroyed 21 | . 16 5 Guns 16 | . 11 5 Cannons 5 | . 5 . Classes Destroyed 7 | 1 5 1 Worker 1 | . 1 . Builder 4 | . 3 1 Recycler 5 | 1 1 3 Watcher 1 | . 1 . Swarmer 6 | . 6 . Grunt 10 | . 10 . Assembled 5 | . . 5 Best Kill Streak 7 | 1 7 5 Combat Bots Only 5 | . 5 5 Max Kills in Single Turn 2 | 1 2 2 Gunslinging 1 | . 1 1 Exploded . | . . . Melee . | . . . Uniques/NPCs Destroyed . | . . . Combat | -11 -10 -10 -------- Run | Yrd Mat Min Hostile Shots Fired 120 | . 81 39 Missed 31 | . 26 5 Hits 89 | . 55 34 Melee 5 | . . 5 Projectile 84 | . 55 29 AOE 2 | . . 2 Critical Strikes 1 | . 1 . Damage Taken 1089 | . 586 503 Core 266 | . 176 90 Absorbed by Shields . | . . . Core Remaining (%) 100 | 100 . . Volleys Fired 114 | 5 83 26 Largest 2 | 2 2 2 Hottest 98 | 60 83 98 Shots Fired 193 | 10 132 51 Gun 165 | 10 116 39 Cannon 28 | . 16 12 Launcher . | . . . Special . | . . . Kinetic 97 | 5 53 39 Thermal 96 | 5 79 12 Explosive . | . . . Electromagnetic . | . . . Robot Hit Streak 14 | 3 14 7 Robot Miss Streak 6 | 1 4 6 Penetration Max . | . . . Secondary Targets 3 | . 2 1 Max Gunslinging Chain 1 | . 1 1 Shots Hit Robots 108 | 6 73 29 Core Hits 54 | 2 37 15 Critical Kills . | . . . Critical Parts Destroyed . | . . . Critical Strikes . | . . . Melee Attacks . | . . . Impact . | . . . Slashing . | . . . Piercing . | . . . Sneak Attacks . | . . . Combat Hostiles . | . . . Follow-up Attacks . | . . . Damage Inflicted 1464 | 62 872 530 Guns 1098 | 62 674 362 Cannons 361 | . 193 168 Explosions . | . . . Melee . | . . . Ramming 5 | . 5 . Kinetic 653 | 8 283 362 Thermal 806 | 54 584 168 Explosive . | . . . Electromagnetic . | . . . Impact . | . . . Slashing . | . . . Piercing . | . . . Highest Corruption 5 | . . 5 Average Corruption 5 | . . 5 Corruption Purged . | . . . Corruption Blocked . | . . . Effects 1 | . . 1 Weapon Failures 1 | . . 1 Overload Shots . | . . . Overflow Damage 33 | . . 33 Projectiles 33 | . . 33 Explosions . | . . . Melee . | . . . Knockbacks . | . . . Impact . | . . . Kinetic . | . . . Secondary . | . . . Self-Inflicted Damage . | . . . Shots . | . . . Rammed . | . . . Targets Rammed 1 | . 1 . Kicked 1 | . 1 . Crushed . | . . . Highest Temperature 108 | 40 108 96 Average Temperature 37 | 23 38 38 Received Heat Transfer 294 | . 270 24 Siege Activations . | . . . Martial Activations . | . . . Shielding Activations . | . . . Robots Disrupted . | . . . Combat Hostiles . | . . . Robots Corrupted . | . . . Combat Hostiles . | . . . Parts Fried . | . . . Impact Corruptions . | . . . Robots Melted . | . . . Combat Hostiles . | . . . Parts Melted 1 | . 1 . Heat Transferred 1666 | 125 1282 259 Parts Sabotaged . | . . . Parts Stolen . | . . . Parts Stripped . | . . . Power Chain Reactions . | . . . Alert | -11 -10 -10 ------- Run | Yrd Mat Min Maximum Alert Level . | . . . Low Security (%) 100 | 100 100 100 Level 1 . | . . . Level 2 . | . . . Level 3 . | . . . Level 4 . | . . . Level 5 . | . . . High Security . | . . . Max Security . | . . . Peak Influence 147 | 5 147 45 Initial 45 | . . 45 Average 32 | . 53 4 Influence Increases 446 | 5 416 25 Destroy 0b10 Robot/C 320 | . 320 . Destroy 0b10 Robot/NC 55 | 5 30 20 Destroy Leader 62 | . 62 . Successful Hack 3 | . 3 . Destroy Structure 6 | . 1 5 Influence Decreases 446 | 5 299 142 Entered New Map 72 | . . 72 Time Decay 364 | 5 289 70 Lost Part 10 | . 10 . Squads Dispatched 5 | . 4 1 Investigation 4 | . 3 1 Extermination . | . . . Reinforcement 1 | . 1 . Assault . | . . . Garrison . | . . . Intercept . | . . . Searches Triggered . | . . . Construction Impeded . | . . . Haulers Reinforced . | . . . Active Scanning Responses . | . . . Cargo Convoy Interrupts . | . . . Stealth | -11 -10 -10 --------- Run | Yrd Mat Min Distress Signals . | . . . Communications Jammed . | . . . Distress Signals . | . . . Times Spotted 37 | . 27 10 Peak Tracking Total 6 | . 6 5 Tactical Retreats . | . . . Traps | -11 -10 -10 ------- Run | Yrd Mat Min Traps Triggered 3 | . 3 . Indirectly . | . . . Trap Hack Attempts . | . . . Triggered . | . . . Disarmed . | . . . Reprogrammed . | . . . Reused . | . . . Traps Extracted . | . . . Installed . | . . . Triggered . | . . . Machines | -11 -10 -10 ---------- Run | Yrd Mat Min Machines Disabled . | . . . Max in Single Turn . | . . . Machines Repaired . | . . . Machines Dismantled . | . . . Machines Sabotaged . | . . . Overloaded Fab Kills . | . . . Hacking | -11 -10 -10 --------- Run | Yrd Mat Min Machines Accessed 7 | . 5 2 Terminals 4 | . 4 . Fabricators . | . . . Repair Stations . | . . . Recycling Units 1 | . 1 . Scanalyzers . | . . . Garrison Access . | . . . Total Hacks 18 | . 16 2 Successful 10 | . 8 2 Failed 8 | . 8 . Catastrophic . | . . . Database Lockouts . | . . . Manual . | . . . Terminals 14 | . 14 . Fabricators . | . . . Repair Stations . | . . . Recycling Units 2 | . 2 . Scanalyzers . | . . . Garrison Access . | . . . Terminal Hacks 8 | . 6 2 Prototype ID Bank 1 | . 1 . Open Door 2 | . . 2 Alert Level 1 | . 1 . Locate Traps 1 | . 1 . Dispatch Records 1 | . 1 . Maintenance Status 1 | . 1 . Zone Layout 1 | . 1 . Fabricator Hacks . | . . . Repair Station Hacks . | . . . Recycling Unit Hacks 2 | . 2 . Report Inventory 1 | . 1 . Retrieve Matter 1 | . 1 . Scanalyzer . | . . . Garrison Access Hacks . | . . . Unauthorized Hacks . | . . . Terminals . | . . . Fabricators . | . . . Repair Stations . | . . . Recycling Units . | . . . Scanalyzers . | . . . Garrison Access . | . . . Data Cores Recovered . | . . . Used . | . . . Hacking Detections 4 | . 4 . Full Trace Events 3 | . 3 . Feedback Events . | . . . Feedback Blocked . | . . . Robot Schematics Acquired . | . . . Robots Built . | . . . Authchips . | . . . Time . | . . . Total Robot Build Rating . | . . . Part Schematics Acquired . | . . . Parts Built . | . . . Authchips . | . . . Time . | . . . Total Part Build Rating . | . . . Part Studies Acquired . | . . . Parts Repaired . | . . . Time . | . . . Parts Recycled . | . . . Recycled Matter . | . . . Retrieved Matter . | . . . Retrieved Components . | . . . Parts Scanalyzed . | . . . Part Schematics Acquired . | . . . Parts Damaged . | . . . Bothacking | -11 -10 -10 ------------ Run | Yrd Mat Min Used RIF Installer . | . . . Robots Hacked . | . . . Non-combat . | . . . Combat . | . . . Robot Hacks Applied . | . . . Relay Couplers Released . | . . . Fabnet Peak Effective % . | . . . Robots Rewired . | . . . Allies Hacked . | . . . Hacks Repelled . | . . . Allies | -11 -10 -10 -------- Run | Yrd Mat Min Total Allies . | . . . Largest Group . | . . . Highest-Rated Group . | . . . Highest-Rated Ally . | . . . Total Orders . | . . . Ally Attacks . | . . . Total Damage . | . . . Kills . | . . . Allies Corrupted . | . . . Allies Melted . | . . . Intel | -11 -10 -10 ------- Run | Yrd Mat Min Active Infowar (turns) 742 | . 354 388 Structural 742 | . 354 388 Robot Analysis Total . | . . . Derelict Logs Recovered 1 | . . 1 Drone Launches . | . . . Drone Recoveries . | . . . Exploration | -11 -10 -10 ------------- Run | Yrd Mat Min Turns Passed 1615 | 64 932 619 Spaces Moved 966 | 31 555 380 Core 9 | 9 . . Treads . | . . . Legs 957 | 22 555 380 Wheels . | . . . Hover . | . . . Flight . | . . . Fastest Speed 50 | 50 120 120 Average Speed 129 | 120 123 138 Slowest Speed 200 | 200 190 190 Overloaded Moves . | . . . Propulsion Burnouts . | . . . Robots Hopped . | . . . Potential Cave-ins . | . . . Cave-ins Triggered . | . . . Exploration Rate (%) 52 | 3 85 69 Regions Visited 2 Branch Regions 1 Pre-discovered Areas . | . . . Known Exits Taken . | . . . Unknown Exits Taken 2 | 1 1 . Scrap Searched . | . . . Spaces Dug . | . . . Terrain Destroyed 5 | . . 5 Melee . | . . . Projectile 5 | . . 5 AOE . | . . . Terrain Rammed . | . . . Walls Destroyed . | . . . Machines Disabled . | . . . Actions | -11 -10 -10 --------- Run | Yrd Mat Min Total 1156 | 48 678 430 Wait 16 | . 7 9 Move 964 | 30 554 380 Hop . | . . . Pick Up 27 | 7 13 7 Fast Attach . | . . . Attach 17 | 6 8 3 Detach . | . . . Swap 5 | . 3 2 Drop 12 | . 9 3 Fire 114 | 5 83 26 Melee . | . . . Ram . | . . . Kick 1 | . 1 . Crush . | . . . Escape Stasis . | . . . Rewire . | . . . Trap . | . . . Miscellaneous . | . . . Route ------- -11/Scrapyard -10/Materials (discovered 4 exits: [*Mat x3] / *Min) -10/Mines (discovered 2 exits: [*Mat x2]) History --------- Turn | Location | Event 14 | -11/Scrapyard | Discovered new exit (range 16) 65 | -11/Scrapyard | Entered Materials 309 | -10/Materials | Build established: Mutant 317 | -10/Materials | Discovered new exit (range 16) 357 | -10/Materials | Core integrity fell below 50% 568 | -10/Materials | Discovered new exit (range 12) 719 | -10/Materials | Discovered new exit (range 8) 906 | -10/Materials | Discovered new exit (range 15) 997 | -10/Materials | Entered Mines 1168 | -10/Mines | Discovered new exit (range 8) 1185 | -10/Mines | Met a Derelict shopkeep closing up shop 1380 | -10/Mines | Found the Drone Emporium 1384 | -10/Mines | Found Prototype Device 1385 | -10/Mines | Identified Thief Drone Bay 1530 | -10/Mines | Discovered new exit (range 15) 1563 | -10/Mines | Assembled infested the area 1601 | -10/Mines | Core integrity fell below 20% 1616 | -10/Mines | Destroyed by D-53 Grenadier with Mini Grenade Launcher Last Messages --------------- EXIT=FOUND ALERT: Infestation in the mines, dispatching Demolisher response squad. as-75433 destroyed. Switching to secondary target: as-87124. as-87124 destroyed. Lgt. Ion Engine destroyed. System corrupted by crushing effect (+5). U-05 Engineer destroyed. as-69688 destroyed. System corrupted: Autogun jammed. as-53499 destroyed. K-01 Serf collects debris. as-83031 destroyed. C-45 Heavy ARC bursts open, deploying its payload. D-53 Grenadier unfolds itself. K-01 Serf collects debris. as-99798 destroyed. K-01 Serf collects debris. Map ----- +----------------------------------------------------+ | ??????????????????????????????????????????????? | | ??????????????????????????????????????????????? | | ??????????????????????????????????????????????? | | ??????????????????????????????????????????????? | | ??????????????????????????????????????????????? | | ??????????????????????????????????????????????? | | ??????????????????????????????????????????????? | | ??????????????????????????????????????????????? | | ??????????????????????????????????????????????? | | ??????????????????????????????????????????????? | | ??????????????????????????????????????????????? | | ??????????????????????????????????????????????? | | ??????????????????????????????????????????????? | | ?????????????????????????? ##?????????????????? | | ????????????????????????? #?????????????????? | | ????????????????????????? #?????????????????? | | ?????????????????????????# #?????????????????? | | ?????????????#???????????# #?????????????????? | | ?????????????#=??????????# ##????????????????? | | ?????????????? ?????????# #????????????????? | | ??????????????? ##???????# ##???????????????? | | ???????????????? ???????# #???????????????? | | ????????????????? ?????## ##??????????????? | | ?????????????????# ?##### #??????????????? | | ????????????????# # # #??????????????? | | ?????????????????# % %@ < ##?????????????? | | ????????????????# %% ##????????????? | | ????????????????# #????????????? | | ?????????? #????????????? | | ????????? #????????????? | | ???????? ######## dd ##????????????? | | ??????????????????### ##????????????"" | | ???????????????##???## ### !######???????""" | | ??????????????## #??########*k|######????? """ | | ??????????????# ??????### =! ###???? | | ?????????????## ####### % ##### | | ?????????????# ##### ##### | | ????????????? """ # | | ???????????????????## """ # | | ???????????????????### """ ## ## ## | | ?????????????????????## ### ## ### ### | | ??????????????????????### #### ## ##?##### | | ????????????????????????####### ######## | | ???????????????????????????### ## ####### | | ???????????????????????????## ## | | ???????????????????########## #### ##### | | ???????????????????########## #### ###### | | ???????????????????## #### ##?#### | | ???????????????????## #### ##??### | | ???????????????????## ####### ##???## | +----------------------------------------------------+ Best States ------------- Heat Dissipation 25 Energy Generation 10 Energy Capacity 125 Matter Stores 300 Matter Capacity 300 Sight Range 16 Terrain Scan Density 10 Evasion (%) 55 Item Schematics ----------------- None Robot Schematics ------------------ None Fabricated ------------ Nothing Repaired ---------- Nothing Studied --------- None Alien Tech Used ----------------- None Achievements -------------- Hey, That's Mine! Storm Trooper Challenges ------------ None Game ------ Seed SmartbombDroneField Manual? 0 Play Time 00:21:49 Cumulative 0.7 hours Start 2026.02.20 @ 15:06:41 End 2026.02.20 @ 15:26:54 Sessions 1 Manual Loads 0 Difficulty Rogue Special Mode None Game No. 3 Rogue 2 Adventurer 1 Explorer 0 Win Type - Total 0 Types 0/0/0/0/0/0/0/0/0/0 Lore% 0 Gallery% 3 Achievement% 6 Wizard Run 0 Options --------- Layout 1 ASCII 0 Keyboard 0 Movement Mouse Keybinds 0 Fullscreen 1 Font 32/SmallcapsGlow Map View 50x35 Zoom Use 0% Tactical HUD 0 Map Filters NONE Filters NONE Steam 1 RUN: c3e21ce6-244e-4e50-bae8-35ce78d4d2a7